fUSD/lending_fUSD_20250217
["ID","MTS","AMOUNT","RATE_DAILY","PERIOD"]
[353319875,1739758264971,-500.0,0.00014438,2]
[353319876,1739758264981,-757.22,0.00014438,2]
[353319877,1739758264990,-500.0,0.00014438,2]
[353319878,1739758265000,-500.0,0.00014438,2]
[353319879,1739758265010,-554.01,0.00014438,2]
[353319880,1739758265019,-500.0,0.00014438,2]
[353319881,1739758265028,-236.673984,0.00014438,2]
[353319882,1739758265037,-191.939212,0.00014438,2]
[353319883,1739758265048,-236.673984,0.00014438,2]
[353319884,1739758265057,-685.51,0.00014438,2]
[353319885,1739758265067,-552.47,0.00014438,2]
[353319886,1739758265076,-191.939212,0.00014438,2]
[353319887,1739758265085,-507.48,0.00014438,2]
[353319888,1739758265095,-1785.37,0.00014438,2]
[353319889,1739758265104,-500.0,0.00014438,2]
[353319890,1739758265114,-728.56,0.00014438,2]
[353319891,1739758265123,-500.0,0.00014438,2]
[353319892,1739758265132,-452.6346478,0.00014438,2]
[353319893,1739758265143,-150.0,0.00014438,2]
[353319894,1739758265152,-1000.0,0.00014438,2]
[353319895,1739758265162,-500.0,0.00014438,2]
[353319896,1739758265171,-585.19,0.00014438,2]
[353319897,1739758265181,-787.49,0.00014438,2]
[353319898,1739758265190,-403.93419102,0.00014438,2]
[353319899,1739758265199,-401.58234336,0.00014438,2]
[353319900,1739758265208,-500.0,0.00014438,2]
[353319901,1739758265217,-844.7,0.00014438,2]
[353319902,1739758265227,-500.0,0.00014438,2]
[353319903,1739758265236,-500.0,0.00014438,2]
[353319904,1739758265245,-520.02,0.00014438,2]
[353319905,1739758265255,-906.39,0.00014438,2]
[353319906,1739758265263,-500.0,0.00014438,2]
[353319907,1739758265273,-500.0,0.00014438,2]
[353319908,1739758265282,-1256.67,0.00014438,2]
[353319909,1739758265291,-643.41,0.00014438,2]
[353319910,1739758265302,-500.0,0.00014438,2]
[353319911,1739758265312,-518.25,0.00014438,2]
[353319912,1739758265322,-569.03,0.00014438,2]
[353319913,1739758265331,-500.0,0.00014438,2]
[353319914,1739758265340,-798.89,0.00014438,2]
[353319915,1739758265349,-500.0,0.00014438,2]
[353319916,1739758265359,-500.0,0.00014438,2]
[353319917,1739758265368,-581.06,0.00014438,2]
[353319918,1739758265377,-500.0,0.00014438,2]
[353319919,1739758265386,-500.0,0.00014438,2]
[353319920,1739758265395,-500.0,0.00014438,2]
[353319921,1739758265405,-663.28,0.00014438,2]
[353319922,1739758265414,-500.0,0.00014438,2]
[353319923,1739758265423,-500.0,0.00014438,2]
[353319924,1739758265433,-783.36,0.00014438,2]
[353319925,1739758265442,-500.0,0.00014438,2]
[353319926,1739758265452,-768.72,0.00014438,2]
[353319927,1739758265461,-500.0,0.00014438,2]
[353319928,1739758265471,-500.0,0.00014438,2]
[353319929,1739758265483,-500.0,0.00014438,2]
[353319930,1739758265492,-500.0,0.00014438,2]
[353319931,1739758265501,-533.69151834,0.00014438,2]
[353319932,1739758265511,-500.0,0.00014438,2]
[353319933,1739758265520,-500.0,0.00014438,2]
[353319934,1739758265531,-198.35069,0.00014438,2]
[353319935,1739758265541,-500.0,0.00014438,2]
[353319936,1739758265552,-198.35069,0.00014438,2]
[353319937,1739758265562,-480.8830505,0.00014438,2]
[353319938,1739758265571,-500.0,0.00014438,2]
[353319939,1739758265582,-622.66,0.00014438,2]
[353319940,1739758265591,-500.0,0.00014438,2]
[353319941,1739758265601,-500.0,0.00014438,2]
[353319942,1739758265610,-500.0,0.00014438,2]
[353319943,1739758265619,-509.66,0.00014438,2]
[353319944,1739758265628,-500.0,0.00014438,2]
[353319945,1739758265638,-500.0,0.00014438,2]
[353319946,1739758265647,-500.0,0.00014438,2]
[353319947,1739758265656,-500.0,0.00014438,2]
[353319948,1739758265665,-620.1,0.00014438,2]
[353319949,1739758265674,-257.15387611,0.0001444,2]
[353319950,1739758265684,-150.0,0.00014444,2]
[353319951,1739758265693,-150.0,0.00014449,2]
[353319952,1739758265702,-150.0,0.00014451,2]
[353319953,1739758265712,-1000.0,0.00014471,2]
[353319954,1739758265721,-150.0,0.00014473,2]
[353319955,1739758265730,-321.343028,0.00014479,2]
[353319956,1739758265739,-321.343019,0.00014479,2]
[353319957,1739758265748,-2088.411637,0.00014479,2]
[353319958,1739758265757,-2088.411637,0.00014479,2]
[353319959,1739758265767,-1311.362731,0.00014479,2]
[353319960,1739758265776,-1311.362731,0.00014479,2]
[353319961,1739758265786,-196.146383,0.00014479,2]
[353319962,1739758265796,-196.146379,0.00014479,2]
[353319963,1739758265806,-352.98363979,0.00014479,2]
[353319964,1739758265816,-101850.76069743,0.00014479,2]
[353319965,1739758265825,-150.0,0.00014487,2]
[353319966,1739758265835,-150.55743084,0.00014487,2]
[353319967,1739758265845,-1000.0,0.00014488,2]
[353319968,1739758265855,-150.0,0.00014492,2]
[353319969,1739758265865,-150.0,0.00014495,2]
[353319970,1739758265875,-500.0,0.00014499,2]
[353319971,1739758265885,-60000.0,0.000145,3]
[353319972,1739758265894,-161459.49871327,0.000145,4]
[353319973,1739758265903,-151.0,0.000145,2]
[353319974,1739758266033,-323.015556,0.000145,2]
[353319975,1739758266065,-323.015558,0.000145,2]
[353319976,1739758266075,-253.050725,0.000145,2]
[353319977,1739758266086,-253.050725,0.000145,2]
[353319978,1739758266095,-297.959482,0.000145,2]
[353319979,1739758266105,-894.397479,0.000145,2]
[353319980,1739758266116,-151.0,0.000145,2]
[353319981,1739758266126,-894.397486,0.000145,2]
[353319982,1739758266137,-2088.411637,0.000145,2]
[353319983,1739758266148,-2088.411639,0.000145,2]
[353319984,1739758266158,-1311.362731,0.000145,2]
[353319985,1739758266168,-1311.362731,0.000145,2]
[353319986,1739758266178,-5000.0,0.000145,15]
[353319987,1739758266188,-236.673984,0.000145,2]
[353319988,1739758266198,-191.939212,0.000145,2]
[353319989,1739758266208,-236.673982,0.000145,2]
[353319990,1739758266218,-191.939204,0.000145,2]
[353319991,1739758266228,-198.35069,0.000145,2]
[353319992,1739758266238,-198.3507,0.000145,2]
[353319993,1739758266248,-150.0,0.00014502,2]
[353319994,1739758266258,-150.0,0.0001451,2]
[353319995,1739758266268,-491.94573826,0.0001451,2]
[353319996,1739758266278,-150.0,0.00014516,2]
[353319997,1739758266288,-586.38,0.0001452,2]
[353319998,1739758266298,-1000.0,0.0001452,3]
[353319999,1739758266308,-308.35670934,0.0001452,2]
[353320000,1739758266318,-500.0,0.0001452,2]
[353320001,1739758266327,-500.0,0.0001452,2]
[353320002,1739758266337,-500.0,0.0001452,2]
[353320003,1739758266347,-500.0,0.0001452,2]
[353320004,1739758266356,-553.65,0.0001452,2]
[353320005,1739758266366,-500.0,0.0001452,2]
[353320006,1739758266375,-594.09527743,0.0001452,2]
[353320007,1739758266385,-500.0,0.0001452,2]
[353320008,1739758266395,-500.0,0.0001452,2]
[353320009,1739758266407,-500.0,0.0001452,2]
[353320010,1739758266417,-500.0,0.0001452,2]
[353320011,1739758266427,-500.0,0.0001452,2]
[353320012,1739758266437,-214.44037265,0.0001452,2]
[353320013,1739758266447,-500.0,0.0001452,2]
[353320014,1739758266457,-500.0,0.0001452,2]
[353320015,1739758266466,-500.0,0.0001452,2]
[353320016,1739758266476,-757.22,0.0001452,2]
[353320017,1739758266490,-500.0,0.0001452,2]
[353320018,1739758266499,-500.0,0.0001452,2]
[353320019,1739758266509,-554.01,0.0001452,2]
[353320020,1739758266519,-500.0,0.0001452,2]
[353320021,1739758266530,-685.51,0.0001452,2]
[353320022,1739758266540,-552.47,0.0001452,2]
[353320023,1739758266551,-507.48,0.0001452,2]
[353320024,1739758266561,-1785.37,0.0001452,2]
[353320025,1739758266571,-500.0,0.0001452,2]
[353320026,1739758266580,-728.56,0.0001452,2]
[353320027,1739758266589,-500.0,0.0001452,2]
[353320028,1739758266599,-500.0,0.0001452,2]
[353320029,1739758266608,-585.19,0.0001452,2]
[353320030,1739758266617,-787.49,0.0001452,2]
[353320031,1739758266626,-500.0,0.0001452,2]
[353320032,1739758266636,-844.7,0.0001452,2]
[353320033,1739758266646,-500.0,0.0001452,2]
[353320034,1739758266655,-441.93024659,0.0001452,2]
[353320035,1739758266664,-520.02,0.0001452,2]
[353320036,1739758266674,-906.39,0.0001452,2]
[353320037,1739758266684,-500.0,0.0001452,2]
[353320038,1739758266694,-500.0,0.0001452,2]
[353320039,1739758266703,-1256.67,0.0001452,2]
[353320040,1739758266714,-643.41,0.0001452,2]
[353320041,1739758266724,-500.0,0.0001452,2]
[353320042,1739758266734,-569.03,0.0001452,2]
[353320043,1739758266744,-518.25,0.0001452,2]
[353320044,1739758266754,-500.0,0.0001452,2]
[353320045,1739758266763,-798.89,0.0001452,2]
[353320046,1739758266773,-500.0,0.0001452,2]
[353320047,1739758266783,-500.0,0.0001452,2]
[353320048,1739758266792,-581.06,0.0001452,2]
[353320049,1739758266804,-500.0,0.0001452,2]
[353320050,1739758266813,-500.0,0.0001452,2]
[353320051,1739758266823,-500.0,0.0001452,2]
[353320052,1739758266832,-663.28,0.0001452,2]
[353320053,1739758266842,-500.0,0.0001452,2]
[353320054,1739758266851,-500.0,0.0001452,2]
[353320055,1739758266861,-783.36,0.0001452,2]
[353320056,1739758266871,-500.0,0.0001452,2]
[353320057,1739758266881,-768.72,0.0001452,2]
[353320058,1739758266891,-500.0,0.0001452,2]
[353320059,1739758266901,-500.0,0.0001452,2]
[353320060,1739758266911,-500.0,0.0001452,2]
[353320061,1739758266922,-500.0,0.0001452,2]
[353320062,1739758266932,-500.0,0.0001452,2]
[353320063,1739758266941,-500.0,0.0001452,2]
[353320064,1739758266950,-413.57570737,0.0001452,2]
[353320065,1739758266960,-500.0,0.0001452,2]
[353320066,1739758266970,-622.66,0.0001452,2]
[353320067,1739758266979,-500.0,0.0001452,2]
[353320068,1739758266989,-500.0,0.0001452,2]
[353320069,1739758266999,-500.0,0.0001452,2]
[353320070,1739758267009,-509.66,0.0001452,2]
[353320071,1739758267019,-500.0,0.0001452,2]
[353320072,1739758267028,-500.0,0.0001452,2]
[353320073,1739758267038,-500.0,0.0001452,2]
[353320074,1739758267048,-500.0,0.0001452,2]
[353320075,1739758267058,-500.0,0.00014521,7]
[353320076,1739758267068,-150.0,0.00014536,2]
[353320077,1739758267078,-1000.0,0.00014536,2]
[353320078,1739758267087,-2372.06,0.00014547,2]
[353320079,1739758267097,-150.0,0.00014555,2]
[353320080,1739758267107,-1000.0,0.00014556,2]
[353320081,1739758267117,-150.0,0.00014561,2]
[353320082,1739758267127,-1000.0,0.00014572,2]
[353320083,1739758267137,-150.0,0.00014578,2]
[353320084,1739758267147,-150.0,0.00014579,2]
[353320085,1739758267158,-150.0,0.00014581,2]
[353320086,1739758267168,-538.0,0.00014584,2]
[353320087,1739758267178,-273.21940613,0.0001459,2]
[353320088,1739758267189,-150.0,0.00014591,2]
[353320089,1739758267199,-150.0,0.00014595,2]
[353320090,1739758267209,-386.74994052,0.00014599,2]
[353320091,1739758267219,-150.0,0.00014599,2]
[353320092,1739758267230,-356.08198141,0.000146,2]
[353320093,1739758267239,-2378.59029932,0.000146,2]
[353320094,1739758267250,-194.42685532,0.000146,2]
[353320095,1739758267260,-2112.0,0.000146,3]
[353320096,1739758267270,-204.67940539,0.000146,2]
[353320097,1739758267280,-586.38,0.00014602,2]
[353320098,1739758267289,-500.0,0.00014602,2]
[353320099,1739758267299,-500.0,0.00014602,2]
[353320100,1739758267308,-500.0,0.00014602,2]
[353320101,1739758267318,-500.0,0.00014602,2]
[353320102,1739758267328,-553.65,0.00014602,2]
[353320103,1739758267338,-500.0,0.00014602,2]
[353320104,1739758267347,-290.63412398,0.00014602,2]
[353320105,1739758267357,-500.0,0.00014602,2]
[353320106,1739758267366,-500.0,0.00014602,2]
[353320107,1739758267376,-500.0,0.00014602,2]
[353320108,1739758267385,-500.0,0.00014602,2]
[353320109,1739758267395,-500.0,0.00014602,2]
[353320110,1739758267404,-500.0,0.00014602,2]
[353320111,1739758267414,-500.0,0.00014602,2]
[353320112,1739758267423,-757.22,0.00014602,2]
[353320113,1739758267433,-500.0,0.00014602,2]
[353320114,1739758267442,-500.0,0.00014602,2]
[353320115,1739758267451,-554.01,0.00014602,2]
[353320116,1739758267460,-291.26287859,0.00014602,2]
[353320117,1739758267470,-685.51,0.00014602,2]
[353320118,1739758267481,-552.47,0.00014602,2]
[353320119,1739758267492,-507.48,0.00014602,2]
[353320120,1739758267501,-1785.37,0.00014602,2]
[353320121,1739758267510,-500.0,0.00014602,2]
[353320122,1739758267520,-728.56,0.00014602,2]
[353320123,1739758267530,-500.0,0.00014602,2]
[353320124,1739758267539,-500.0,0.00014602,2]
[353320125,1739758267548,-585.19,0.00014602,2]
[353320126,1739758267560,-787.49,0.00014602,2]
[353320127,1739758267570,-645.86167561,0.00014602,2]
[353320128,1739758267579,-844.7,0.00014602,2]
[353320129,1739758267588,-500.0,0.00014602,2]
[353320130,1739758267598,-520.02,0.00014602,2]
[353320131,1739758267607,-906.39,0.00014602,2]
[353320132,1739758267617,-500.0,0.00014602,2]
[353320133,1739758267626,-500.0,0.00014602,2]
[353320134,1739758267636,-1256.67,0.00014602,2]
[353320135,1739758267645,-643.41,0.00014602,2]
[353320136,1739758267655,-500.0,0.00014602,2]
[353320137,1739758267664,-569.03,0.00014602,2]
[353320138,1739758267674,-518.25,0.00014602,2]
[353320139,1739758267683,-500.0,0.00014602,2]
[353320140,1739758267692,-798.89,0.00014602,2]
[353320141,1739758267702,-500.0,0.00014602,2]
[353320142,1739758267711,-500.0,0.00014602,2]
[353320143,1739758267721,-581.06,0.00014602,2]
[353320144,1739758267730,-500.0,0.00014602,2]
[353320145,1739758267739,-500.0,0.00014602,2]
[353320146,1739758267749,-500.0,0.00014602,2]
[353320147,1739758267758,-663.28,0.00014602,2]
[353320148,1739758267768,-500.0,0.00014602,2]
[353320149,1739758267778,-500.0,0.00014602,2]
[353320150,1739758267788,-783.36,0.00014602,2]
[353320151,1739758267799,-500.0,0.00014602,2]
[353320152,1739758267811,-768.72,0.00014602,2]
[353320153,1739758267820,-500.0,0.00014602,2]
[353320154,1739758267831,-500.0,0.00014602,2]
[353320155,1739758267840,-500.0,0.00014602,2]
[353320156,1739758267850,-500.0,0.00014602,2]
[353320157,1739758267859,-523.30068954,0.00014602,2]
[353320158,1739758267869,-500.0,0.00014602,2]
[353320159,1739758267879,-500.0,0.00014602,2]
[353320160,1739758267888,-622.66,0.00014602,2]
[353320161,1739758267899,-500.0,0.00014602,2]
[353320162,1739758267908,-500.0,0.00014602,2]
[353320163,1739758267918,-500.0,0.00014602,2]
[353320164,1739758267928,-509.66,0.00014602,2]
[353320165,1739758267938,-500.0,0.00014602,2]
[353320166,1739758267948,-500.0,0.00014602,2]
[353320167,1739758267958,-500.0,0.00014602,2]
[353320168,1739758267968,-500.0,0.00014602,2]
[353320169,1739758267977,-150.0,0.00014605,2]
[353320170,1739758267986,-150.0,0.00014611,2]
[353320171,1739758267996,-150.0,0.00014616,2]
[353320172,1739758268007,-152.0,0.00014617,3]
[353320173,1739758268016,-150.0,0.0001462,2]
[353320174,1739758268026,-150.0,0.00014634,2]
[353320175,1739758268035,-1000.0,0.00014643,2]
[353320176,1739758268044,-150.0,0.00014644,2]
[353320177,1739758268055,-150.0,0.00014644,2]
[353320178,1739758268064,-150.0,0.00014651,2]
[353320179,1739758268073,-150.0,0.00014654,2]
[353320180,1739758268082,-1000.0,0.00014661,2]
[353320181,1739758268092,-150.0,0.00014667,2]
[353320182,1739758268102,-150.0,0.00014667,2]
[353320183,1739758268111,-500.0,0.00014673,2]
[353320184,1739758268120,-500.0,0.00014673,2]
[353320185,1739758268129,-500.0,0.00014673,2]
[353320186,1739758268138,-500.0,0.00014673,2]
[353320187,1739758268148,-500.0,0.00014673,2]
[353320188,1739758268158,-324.59147441,0.00014673,2]
[353320189,1739758268168,-518.99160474,0.00014673,2]
[353320190,1739758268178,-358.40655716,0.00014673,2]
[353320191,1739758268189,-192.32887266,0.00014673,2]
[353320192,1739758268242,-3042.7567819,0.00014674,2]
[353320193,1739758268251,-586.38,0.00014684,2]
[353320194,1739758268261,-2372.06,0.00014684,2]
[353320195,1739758268270,-500.0,0.00014684,2]
[353320196,1739758268279,-500.0,0.00014684,2]
[353320197,1739758268289,-500.0,0.00014684,2]
[353320198,1739758268298,-500.0,0.00014684,2]
[353320199,1739758268307,-553.65,0.00014684,2]
[353320200,1739758268317,-500.0,0.00014684,2]
[353320201,1739758268326,-500.0,0.00014684,2]
[353320202,1739758268336,-500.0,0.00014684,2]
[353320203,1739758268345,-500.0,0.00014684,2]
[353320204,1739758268355,-500.0,0.00014684,2]
[353320205,1739758268364,-500.0,0.00014684,2]
[353320206,1739758268374,-500.0,0.00014684,2]
[353320207,1739758268384,-500.0,0.00014684,2]
[353320208,1739758268394,-757.22,0.00014684,2]
[353320209,1739758268403,-500.0,0.00014684,2]
[353320210,1739758268413,-500.0,0.00014684,2]
[353320211,1739758268423,-554.01,0.00014684,2]
[353320212,1739758268432,-685.51,0.00014684,2]
[353320213,1739758268441,-552.47,0.00014684,2]
[353320214,1739758268451,-507.48,0.00014684,2]
[353320215,1739758268461,-1785.37,0.00014684,2]
[353320216,1739758268470,-500.0,0.00014684,2]
[353320217,1739758268485,-728.56,0.00014684,2]
[353320218,1739758268494,-500.0,0.00014684,2]
[353320219,1739758268503,-500.0,0.00014684,2]
[353320220,1739758268512,-585.19,0.00014684,2]
[353320221,1739758268523,-787.49,0.00014684,2]
[353320222,1739758268532,-844.7,0.00014684,2]
[353320223,1739758268542,-500.0,0.00014684,2]
[353320224,1739758268552,-520.02,0.00014684,2]
[353320225,1739758268561,-906.39,0.00014684,2]
[353320226,1739758268572,-272.02475044,0.00014684,2]
[353320227,1739758268581,-500.0,0.00014684,2]
[353320228,1739758268591,-1256.67,0.00014684,2]
[353320229,1739758268601,-643.41,0.00014684,2]
[353320230,1739758268610,-500.0,0.00014684,2]
[353320231,1739758268620,-569.03,0.00014684,2]
[353320232,1739758268629,-518.25,0.00014684,2]
[353320233,1739758268639,-500.0,0.00014684,2]
[353320234,1739758268648,-798.89,0.00014684,2]
[353320235,1739758268657,-500.0,0.00014684,2]
[353320236,1739758268667,-500.0,0.00014684,2]
[353320237,1739758268676,-581.06,0.00014684,2]
[353320238,1739758268685,-500.0,0.00014684,2]
[353320239,1739758268694,-500.0,0.00014684,2]
[353320240,1739758268704,-663.28,0.00014684,2]
[353320241,1739758268713,-500.0,0.00014684,2]
[353320242,1739758268723,-500.0,0.00014684,2]
[353320243,1739758268733,-293.25061028,0.00014684,2]
[353320244,1739758268742,-783.36,0.00014684,2]
[353320245,1739758268752,-500.0,0.00014684,2]
[353320246,1739758268761,-768.72,0.00014684,2]
[353320247,1739758268770,-500.0,0.00014684,2]
[353320248,1739758268779,-500.0,0.00014684,2]
[353320249,1739758268788,-500.0,0.00014684,2]
[353320250,1739758268799,-500.0,0.00014684,2]
[353320251,1739758268808,-302.43038549,0.00014684,2]
[353320252,1739758268817,-500.0,0.00014684,2]
[353320253,1739758268825,-622.66,0.00014684,2]
[353320254,1739758268834,-614.0067903,0.00014684,2]
[353320255,1739758268843,-500.0,0.00014684,2]
[353320256,1739758268853,-500.0,0.00014684,2]
[353320257,1739758268862,-509.66,0.00014684,2]
[353320258,1739758268871,-500.0,0.00014684,2]
[353320259,1739758268881,-500.0,0.00014684,2]
[353320260,1739758268890,-500.0,0.00014684,2]
[353320261,1739758268899,-500.0,0.00014684,2]
[353320262,1739758268908,-268.54264027,0.00014685,2]
[353320263,1739758268918,-236.74313275,0.00014685,2]
[353320264,1739758268927,-207.91462979,0.00014685,2]
[353320265,1739758268936,-150.0,0.00014685,2]
[353320266,1739758268946,-543.94880253,0.00014685,6]
[353320267,1739758268956,-1000.0,0.00014686,2]
[353320268,1739758268966,-3135.0276824,0.00014688,2]
[353320269,1739758268976,-214.5053752,0.00014688,2]
[353320270,1739758268985,-24288.24368451,0.0001469,2]
[353320271,1739758268994,-3666.8483852,0.0001469,2]
[353320272,1739758269003,-3384.8357466,0.0001469,2]
[353320273,1739758269012,-332.29456806,0.0001469,6]
[353320274,1739758269021,-320.56165433,0.00014691,6]
[353320275,1739758269030,-30067.38774372,0.00014695,6]
[353320276,1739758269039,-214.12803279,0.00014699,6]
[353320277,1739758269049,-543.94880253,0.000147,6]
[353320278,1739758269058,-549670.96868475,0.000147,2]
[353320279,1739758269067,-4198.6690881,0.000147,2]
[353320280,1739758269076,-150.0,0.000147,2]
[353320281,1739758269086,-150.0,0.000147,2]
[353320282,1739758269095,-150.0,0.000147,2]
[353320283,1739758269104,-150.0,0.000147,2]
[353320284,1739758269114,-1078.25283882,0.000147,2]
[353320285,1739758269123,-450.92464128,0.000147,2]
[353320286,1739758269132,-15678.99724198,0.000147,2]
[353320287,1739758269141,-3651.49313327,0.000147,2]
[353320288,1739758269151,-4175.0,0.000147,15]
[353320289,1739758269160,-367.5011,0.000147,2]
[353320290,1739758269169,-374.3789,0.000147,2]
[353320291,1739758269179,-685.03226003,0.000147,6]
[353320292,1739758269188,-214.12803279,0.00014703,6]
[353320293,1739758269197,-5431.19537027,0.00014705,6]
[353320294,1739758269207,-3837.18823818,0.00014708,6]
[353320295,1739758269216,-31603.97393933,0.00014708,6]
[353320296,1739758269225,-1006.3270062,0.00014708,6]
[353320297,1739758269235,-44347.73053023,0.00014711,6]
[353320298,1739758269244,-31603.97393933,0.00014715,6]
[353320299,1739758269254,-332.29456806,0.00014716,6]
[353320300,1739758269264,-9047.99205594,0.00014716,6]
[353320301,1739758269274,-332.29456806,0.00014717,6]
[353320302,1739758269284,-313.86233772,0.00014717,6]
[353320303,1739758269293,-214.12803279,0.00014717,6]
[353320304,1739758269304,-3822.29936274,0.0001472,6]
[353320305,1739758269313,-5431.19537027,0.00014721,6]
[353320306,1739758269323,-7644.59872548,0.00014721,6]
[353320307,1739758269332,-11699.46352332,0.00014721,6]
[353320308,1739758269342,-1006.3270062,0.00014722,6]
[353320309,1739758269351,-44347.73053023,0.00014726,6]
[353320310,1739758269361,-313.86233772,0.00014727,6]
[353320311,1739758269370,-7644.59872548,0.00014727,6]
[353320312,1739758269380,-7644.59872548,0.00014729,6]
[353320313,1739758269389,-26006.69870349,0.0001473,6]
[353320314,1739758269399,-22718.81017482,0.00014732,6]
[353320315,1739758269597,-620.1,0.0001452,2]
[353320316,1739758269607,-10808.29498367,0.00014732,6]
[353320317,1739758269618,-4461.53053296,0.00014732,6]
[353320318,1739758269630,-5745.1265809,0.00014732,6]
[353320319,1739758269639,-685.03226003,0.00014733,6]
[353320320,1739758269650,-96.68221569,0.00014733,2]
[353320321,1739758270090,-297.95315795,0.00011223,2]
[353320322,1739758270100,-149.31837373,0.00013033,2]
[353320323,1739758270126,-1.68162627,0.00013033,2]
[353320324,1739758270136,-500.0,0.00013698,2]
[353320325,1739758270145,-500.0,0.00013698,2]
[353320326,1739758270155,-151.0,0.00013698,2]
[353320327,1739758270164,-500.0,0.00013698,2]
[353320328,1739758270174,-498.67310064,0.00013698,2]
[353320329,1739758270183,-151.0,0.00013779,2]
[353320330,1739758270193,-252.996346,0.00013854,2]
[353320331,1739758270203,-6123.69668144,0.00014176,2]
[353320332,1739758270212,-620.1,0.00014602,2]
[353320333,1739758270222,-620.1,0.00014684,2]
[353320334,1739758270231,-441.31778431,0.00014733,2]
[353320335,1739758270242,-9047.99205595,0.00014737,6]
[353320336,1739758270251,-543.94880253,0.00014737,6]
[353320337,1739758270261,-5431.19537027,0.00014737,6]
[353320338,1739758270271,-3822.29936274,0.00014738,6]
[353320339,1739758270280,-200.0,0.00014738,6]
[353320340,1739758270289,-11020.87676191,0.00014741,6]
[353320341,1739758270300,-11020.87676191,0.00014742,6]
[353320342,1739758270309,-200.0,0.00014744,6]
[353320343,1739758270319,-3822.29936274,0.00014745,6]
[353320344,1739758270328,-428.25606559,0.00014746,6]
[353320345,1739758270338,-320.56165433,0.00014747,6]
[353320346,1739758270347,-9047.99205595,0.00014747,6]
[353320347,1739758270357,-9047.99205594,0.00014748,6]
[353320348,1739758270366,-43733.76227235,0.00014748,6]
[353320349,1739758270376,-320.56165433,0.00014748,6]
[353320350,1739758270385,-320.56165433,0.00014749,6]
[353320351,1739758270395,-332.29456806,0.00014749,6]
[353320352,1739758270404,-9047.99205594,0.00014752,6]
[353320353,1739758270414,-214.70408215,0.00014753,6]
[353320354,1739758270424,-5431.19537027,0.00014754,6]
[353320355,1739758270433,-428.25606559,0.00014756,6]
[353320356,1739758270443,-5431.19537027,0.00014757,6]
[353320357,1739758270453,-313.86233772,0.00014758,6]
[353320358,1739758270462,-9047.99205594,0.00014759,6]
[353320359,1739758270472,-5431.19537027,0.00014759,6]
[353320360,1739758270483,-313.86233772,0.00014762,6]
[353320361,1739758270493,-5800.0,0.00014765,2]
[353320362,1739758270502,-26006.69870349,0.00014766,6]
[353320363,1739758270512,-200.0,0.00014766,6]
[353320364,1739758270522,-11020.87676191,0.00014766,6]
[353320365,1739758270531,-586.38,0.00014767,2]
[353320366,1739758270541,-500.0,0.00014767,2]
[353320367,1739758270551,-500.0,0.00014767,2]
[353320368,1739758270561,-500.0,0.00014767,2]
[353320369,1739758270571,-500.0,0.00014767,2]
[353320370,1739758270580,-553.65,0.00014767,2]
[353320371,1739758270590,-182.56758337,0.00014767,2]
[353320372,1739758270599,-500.0,0.00014767,2]
[353320373,1739758270608,-579.07845856,0.00014767,2]
[353320374,1739758270619,-500.0,0.00014767,2]